bitfinex-derivatives/quotes_SOLF0:USTF0_20260204
["timestamp","ask_amount","ask_price","bid_price","bid_amount"]
[1770234506001,3.55624674,94.679,94.521,1.80952948]
[1770234506192,20.03452235,94.69,94.521,1.80952948]
[1770234506193,3.55624674,94.666,94.521,1.80952948]
[1770234506596,3.55624674,94.639,94.521,1.80952948]
[1770234506793,3.55624674,94.639,94.491,1.80952948]
[1770234507004,3.55624674,94.633,94.465,1.80952948]
[1770234507196,9.5314,94.615,94.465,1.80952948]
[1770234507396,3.55624674,94.614,94.465,1.80952948]
[1770234507597,3.55624674,94.605,94.465,1.80952948]
[1770234507904,3.55624674,94.565,94.431,1.84614374]
[1770234508103,3.55624674,94.563,94.4,1.84614374]
[1770234508406,3.55624674,94.545,94.4,1.84614374]
[1770234508796,3.55624674,94.542,94.402,1.84614374]
[1770234508998,3.55624674,94.542,94.421,1.84614374]
[1770234509199,3.55624674,94.57,94.451,1.84614374]
[1770234509506,3.55624674,94.64,94.511,2.45621338]
[1770234510001,3.55624674,94.637,94.511,2.45621338]
[1770234510700,3.55624674,94.637,94.513,2.45621338]
[1770234511102,3.55624674,94.634,94.513,2.45621338]
[1770234512101,148.1678,94.678,94.513,2.45621338]
[1770234512102,3.55624674,94.632,94.513,2.45621338]
[1770234512698,3.55624674,94.632,94.517,3.07780716]
[1770234513107,3.55624674,94.632,94.54,20.03452235]
[1770234514102,3.55624674,94.632,94.517,3.07780716]
[1770234514296,3.55624674,94.659,94.52,3.29957089]
[1770234514497,3.55624674,94.714,94.571,3.29957089]
[1770234514702,3.55624674,94.678,94.571,3.29957089]
[1770234515300,148.1046,94.718,94.54,29.57332235]
[1770234515301,3.55624674,94.661,94.544,3.29957089]
[1770234515501,3.55624674,94.657,94.511,2.83936594]
[1770234515703,3.55624674,94.606,94.483,2.83936594]
[1770234516006,3.55624674,94.606,94.511,2.83936594]
[1770234517204,3.55624674,94.603,94.511,2.83936594]
[1770234518507,3.55624674,94.603,94.48,20.03452235]
[1770234518705,3.55624674,94.603,94.451,2.73229863]
[1770234519005,9.5356,94.572,94.453,9.5476]
[1770234519204,3.55624674,94.571,94.454,2.73229863]
[1770234519702,3.55624674,94.571,94.45,20.03452235]
[1770234519703,3.55624674,94.571,94.46,2.9136828]
[1770234520204,3.55624674,94.571,94.481,2.9136828]
[1770234520406,3.55624674,94.618,94.481,2.9136828]
[1770234520907,3.55624674,94.582,94.481,2.9136828]
[1770234521814,3.55624674,94.58,94.481,2.9136828]
[1770234523302,148.2557,94.622,94.45,3.02617382]
[1770234523303,3.55624674,94.579,94.45,3.02617382]
[1770234523507,3.55624674,94.579,94.421,3.0039288]
[1770234523710,20.03452235,94.58,94.421,3.0039288]
[1770234523711,3.55624674,94.571,94.421,3.0039288]
[1770234523910,3.55624674,94.522,94.421,3.0039288]
[1770234524407,3.55624674,94.522,94.393,9.5537]
[1770234524606,3.55624674,94.522,94.394,3.0039288]
[1770234524806,3.55624674,94.506,94.406,9.5523]
[1770234525009,3.55624674,94.506,94.394,3.0039288]
[1770234525406,148.3064,94.589,94.419,2.97490622]
[1770234525407,3.55624674,94.531,94.419,2.97490622]
[1770234525618,3.55624674,94.609,94.431,2.97490622]
[1770234525815,3.55624674,94.565,94.461,9.5468]
[1770234526219,3.55624674,94.565,94.456,2.97490622]
[1770234526511,3.55624674,94.549,94.458,2.97490622]
[1770234526706,3.55624674,94.549,94.461,2.97490622]
[1770234526906,3.55624674,94.575,94.461,2.97490622]
[1770234527306,3.55624674,94.575,94.488,2.97490622]
[1770234527916,3.55624674,94.61,94.491,2.95566517]
[1770234528416,3.55624674,94.595,94.504,9.5424]
[1770234528617,3.55624674,94.595,94.491,2.95566517]
[1770234529016,3.55624674,94.583,94.491,2.95566517]
[1770234529311,3.55624674,94.609,94.491,2.95566517]
[1770234531015,3.55624674,94.605,94.516,9.5413]
[1770234531513,3.55624674,94.601,94.516,9.5413]
[1770234531915,3.55624674,94.601,94.503,9.5425]
[1770234532517,3.55624674,94.599,94.516,9.5413]
[1770234532716,3.55624674,94.599,94.491,2.95566517]
[1770234532910,3.55624674,94.599,94.396,594.4345]
[1770234532911,3.55624674,94.599,94.457,2.86909769]
[1770234533824,3.63150768,94.556,94.47,9.5459]
[1770234534222,3.63150768,94.556,94.457,2.86909769]
[1770234534419,3.63150768,94.583,94.483,2.84823872]
[1770234535322,3.63150768,94.583,94.496,9.5433]
[1770234535825,21.16,94.639,94.482,9.5447]
[1770234535826,3.63150768,94.581,94.482,9.5447]
[1770234536020,3.63150768,94.581,94.455,2.88748419]
[1770234536422,9.537,94.559,94.455,2.88748419]
[1770234536726,148.2579,94.62,94.455,2.88748419]
[1770234536727,3.63150768,94.558,94.455,2.88748419]
[1770234536929,3.63150768,94.558,94.424,2.88748419]
[1770234537127,148.3377,94.569,94.424,2.88748419]
[1770234537128,3.63150768,94.556,94.424,2.88748419]
[1770234537527,3.63150768,94.528,94.424,2.88748419]
[1770234537723,3.63150768,94.528,94.438,9.5491]
[1770234537920,3.63150768,94.513,94.424,2.88748419]
[1770234538322,3.63150768,94.513,94.38,20.03452235]
[1770234538323,3.63150768,94.513,94.399,2.88168312]
[1770234538626,13.17560768,94.489,94.399,2.88168312]
[1770234538825,3.63150768,94.489,94.411,9.5519]
[1770234539524,9.5443,94.487,94.399,12.43478312]
[1770234539728,3.75996338,94.487,94.399,2.88168312]
[1770234540120,3.75996338,94.476,94.402,9.5528]
[1770234540325,3.75996338,94.504,94.399,2.88168312]
[1770234540722,3.75996338,94.504,94.423,9.5507]
[1770234540926,3.75996338,94.504,94.399,2.88168312]
[1770234541224,3.75996338,94.545,94.448,2.89095101]
[1770234541424,3.75996338,94.597,94.461,2.83851771]
[1770234541624,21.18,94.652,94.42,445.7139]
[1770234541625,3.75996338,94.625,94.491,2.83851771]
[1770234541831,13.29256338,94.603,94.513,9.5415]
[1770234542025,3.75996338,94.602,94.491,2.83851771]
[1770234542228,30.13904669,94.54,94.384,12.57772056]
[1770234542427,148.3994,94.53,94.384,12.57772056]
[1770234542622,148.4212,94.516,94.384,12.57772056]
[1770234542927,30.13904669,94.5,94.349,12.57772056]
[1770234543125,148.4798,94.479,94.349,12.57772056]
[1770234543323,148.4499,94.498,94.349,12.57772056]
[1770234543624,148.4,94.53,94.349,12.57772056]
[1770234543932,9.548,94.45,94.364,12.47708602]
[1770234544229,148.4719,94.484,94.364,12.47708602]
[1770234544427,148.4905,94.472,94.364,12.47708602]
[1770234544628,148.4926,94.471,94.364,12.47708602]
[1770234545028,30.13904669,94.49,94.364,12.47708602]
[1770234545227,30.13904669,94.52,94.364,12.47708602]
[1770234545430,9.5457,94.473,94.372,12.88528861]
[1770234545626,148.4173,94.519,94.372,12.88528861]
[1770234545832,148.422,94.516,94.372,12.88528861]
[1770234546138,148.4649,94.488,94.372,12.88528861]
[1770234546435,30.13904669,94.49,94.372,12.88528861]
[1770234546832,9.5475,94.455,94.372,12.88528861]
[1770234547630,148.4798,94.479,94.372,12.88528861]
[1770234547930,30.13904669,94.49,94.372,12.88528861]
[1770234548233,9.5475,94.455,94.372,12.88528861]
[1770234548638,30.13904669,94.52,94.372,12.88528861]
[1770234548831,9.5447,94.483,94.397,12.89040399]
[1770234549731,9.5458,94.472,94.397,12.89040399]
[1770234549930,148.4107,94.523,94.397,12.89040399]
[1770234550130,9.5479,94.451,94.355,12.87996812]
[1770234550332,30.13904669,94.53,94.355,12.87996812]
[1770234550635,9.5465,94.465,94.365,12.87996812]
[1770234550831,148.467,94.487,94.365,12.87996812]
[1770234551025,30.13904669,94.5,94.365,12.87996812]
[1770234551225,9.5462,94.468,94.381,12.87996812]
[1770234552238,30.13904669,94.52,94.382,12.87590664]
[1770234552239,9.5448,94.481,94.382,12.87590664]
[1770234552729,9.546,94.47,94.382,12.87590664]
[1770234554032,30.13904669,94.52,94.382,12.87590664]
[1770234554033,9.5471,94.459,94.382,12.87590664]
[1770234554230,148.4534,94.496,94.382,12.87590664]
[1770234554433,148.4796,94.479,94.321,12.8275702]
[1770234554833,9.5506,94.424,94.335,12.8275702]
[1770234555137,30.13904669,94.46,94.335,12.8275702]
[1770234555541,9.5534,94.396,94.335,12.8275702]
[1770234555737,148.5364,94.443,94.261,12.82311437]
[1770234556534,148.5215,94.452,94.26,30.13904669]
[1770234556535,148.5714,94.421,94.3,12.82311437]
[1770234556734,148.5665,94.424,94.3,12.82311437]
[1770234556937,19.1026,94.417,94.3,12.82311437]
[1770234559738,9.5548,94.382,94.3,12.82311437]
[1770234560842,9.5559,94.372,94.3,12.82311437]
[1770234561044,30.13904669,94.43,94.3,12.82311437]
[1770234561341,30.13904669,94.43,94.302,12.78456203]
[1770234561542,30.13904669,94.43,94.304,12.78365417]
[1770234562438,9.5559,94.372,94.304,12.78365417]
[1770234562748,9.5559,94.372,94.219,31.79]
[1770234562749,9.5591,94.34,94.241,12.78365417]
[1770234562939,9.5591,94.34,94.243,12.78365417]
[1770234563142,9.5591,94.34,94.21,30.13904669]
[1770234563143,9.5591,94.34,94.245,12.78365417]
[1770234563337,9.5601,94.33,94.25,12.78002195]
[1770234563533,19.1081,94.391,94.252,12.78002195]
[1770234563840,30.13904669,94.4,94.274,12.77865925]
[1770234564545,9.5578,94.353,94.274,12.77865925]
[1770234565448,9.5567,94.364,94.275,15.43340661]
[1770234565646,19.1017,94.422,94.277,12.75940652]
[1770234565845,30.13904669,94.45,94.285,12.75940652]
[1770234566142,30.13904669,94.45,94.287,12.75940652]
[1770234566143,148.5327,94.445,94.287,12.75940652]
[1770234566339,19.0974,94.443,94.297,12.75940652]
[1770234566534,148.5372,94.442,94.297,12.75940652]
[1770234566939,148.5372,94.442,94.27,30.13904669]
[1770234566940,148.5372,94.442,94.299,12.75940652]
[1770234567148,19.0976,94.442,94.301,12.75940652]
[1770234567438,19.0976,94.442,94.303,12.75940652]
[1770234567739,19.0976,94.442,94.302,2.65409484]
[1770234567740,9.553,94.401,94.316,12.74688832]
[1770234567945,19.0976,94.442,94.316,12.74688832]
[1770234568247,9.555,94.381,94.316,12.74688832]
[1770234568445,30.13904669,94.43,94.316,12.74688832]
[1770234568942,148.5588,94.429,94.316,12.74688832]
[1770234569135,148.5701,94.421,94.316,12.74688832]
[1770234569544,148.5701,94.421,94.279,12.7443152]
[1770234569740,19.1022,94.419,94.281,12.7443152]
[1770234569939,30.13904669,94.43,94.283,12.7443152]
[1770234570135,30.13904669,94.43,94.282,2.65451587]
[1770234570136,30.13904669,94.43,94.285,12.7443152]
[1770234570445,30.13904669,94.43,94.303,12.7443152]
[1770234571142,19.1009,94.426,94.303,12.7443152]
[1770234571341,9.5553,94.378,94.303,12.7443152]
[1770234571542,148.5001,94.466,94.304,2.65396639]
[1770234571842,30.13904669,94.47,94.317,12.69542759]
[1770234571843,148.5201,94.453,94.317,12.69542759]
[1770234572240,148.5339,94.444,94.317,12.69542759]
[1770234572439,148.519,94.454,94.317,12.69542759]
[1770234572638,148.5313,94.446,94.317,12.69542759]
[1770234572840,148.5505,94.434,94.317,12.69542759]
[1770234573040,148.5523,94.433,94.317,12.69542759]
[1770234573649,9.5557,94.374,94.317,12.69542759]
[1770234573842,148.563,94.426,94.317,12.69542759]
[1770234574043,148.5716,94.421,94.317,12.69542759]
[1770234574243,148.5822,94.414,94.283,12.66328832]
[1770234574442,148.5568,94.43,94.283,12.66328832]
[1770234574642,148.5488,94.435,94.285,12.66328832]
[1770234574842,30.13904669,94.44,94.287,12.66328832]
[1770234574843,148.5523,94.433,94.287,12.66328832]
[1770234575044,148.5638,94.426,94.289,12.66328832]
[1770234575249,19.1024,94.419,94.291,12.66328832]
[1770234575450,19.1024,94.419,94.293,12.63045715]
[1770234575643,148.5626,94.426,94.295,12.63045715]
[1770234576249,148.5626,94.426,94.297,12.63045715]
[1770234576250,9.557,94.361,94.297,12.63045715]
[1770234576449,9.557,94.361,94.299,12.63045715]
[1770234576853,19.1049,94.406,94.299,12.63045715]
[1770234577450,19.0997,94.432,94.301,12.63550862]
[1770234577751,30.13904669,94.44,94.256,19.1352]
[1770234577752,30.13904669,94.44,94.303,12.63550862]
[1770234578051,19.1,94.43,94.305,12.63550862]
[1770234578352,19.1,94.43,94.307,12.63550862]
[1770234578551,19.1,94.43,94.309,12.63550862]
[1770234578754,19.1003,94.429,94.311,12.63550862]
[1770234578955,19.1003,94.429,94.313,12.63550862]
[1770234579252,148.5544,94.431,94.315,12.63550862]
[1770234579454,9.56647147,94.43,94.315,12.63550862]
[1770234579654,9.557,94.361,94.315,12.63550862]
[1770234580052,30.13904669,94.41,94.293,12.63722329]
[1770234580253,148.5914,94.408,94.295,12.63722329]
[1770234580453,148.5914,94.408,94.296,2.65470189]
[1770234580656,148.5934,94.407,94.296,2.65470189]
[1770234580857,148.5939,94.406,94.296,2.65470189]
[1770234581152,148.5939,94.406,94.185,9.6754991]
[1770234581153,9.77446648,94.373,94.268,12.63722329]
[1770234581352,19.113,94.366,94.268,12.63722329]
[1770234581949,19.57024571,94.408,94.268,12.63722329]
[1770234582160,19.57024571,94.408,94.178,446.8593]
[1770234582161,29.27903118,94.44,94.3,30.13904669]
[1770234582355,29.27903118,94.44,94.33,7.88307003]
[1770234582557,29.27903118,94.44,94.31,7.88307003]
[1770234582762,29.27903118,94.429,94.257,148.8277]
[1770234582966,29.27903118,94.429,94.29,7.88307003]
[1770234583259,148.5024,94.465,94.294,9.5637]
[1770234583260,29.27903118,94.409,94.294,9.5637]
[1770234583469,29.27903118,94.409,94.27,7.88307003]
[1770234584564,9.5543,94.388,94.293,9.5638]
[1770234585060,148.5488,94.435,94.26,30.2066994]
[1770234585061,9.5556,94.375,94.279,9.5652]
[1770234586160,29.24751153,94.385,94.291,9.564]
[1770234586861,9.5555,94.376,94.273,9.5658]
[1770234587059,29.24751153,94.385,94.273,9.5658]
[1770234587263,29.24751153,94.385,94.26,30.2066994]
[1770234587563,9.5554,94.377,94.285,9.5646]
[1770234587761,29.24751153,94.385,94.26,30.2066994]
[1770234588163,29.24751153,94.385,94.259,9.5673]
[1770234588868,177.87511153,94.385,94.244,9.5688]
[1770234589169,29.239729,94.384,94.244,9.5688]
[1770234589561,9.56,94.332,94.244,9.5688]
[1770234590163,9.5611,94.321,94.244,9.5688]
[1770234590368,9.5611,94.321,94.232,9.57]
[1770234590962,9.5611,94.321,94.244,9.5687]
[1770234592869,9.5621,94.311,94.232,9.57]
[1770234593065,9.5621,94.311,94.233,2.65584946]
[1770234593270,9.5621,94.311,94.234,2.65584946]
[1770234593471,9.5621,94.311,94.235,2.65584946]
[1770234593769,9.5621,94.311,94.236,2.65584946]
[1770234593969,9.5621,94.311,94.247,9.5685]
[1770234594172,9.5621,94.311,94.248,2.65584946]
[1770234594371,9.5621,94.311,94.249,2.65584946]
[1770234594570,9.5609,94.323,94.251,9.568]
[1770234594765,9.5609,94.323,94.252,2.65584946]
[1770234595071,9.5619,94.313,94.253,2.65584946]
[1770234595269,9.5619,94.313,94.254,2.65584946]
[1770234595471,9.5619,94.313,94.255,2.65584946]
[1770234595668,9.5619,94.313,94.256,2.65584946]
[1770234595968,9.5619,94.313,94.257,2.65584946]
[1770234596169,9.5619,94.313,94.258,2.65584946]
[1770234596370,9.5619,94.313,94.259,2.65584946]
[1770234596571,9.5619,94.313,94.26,2.65584946]
[1770234596769,9.5619,94.313,94.261,2.65584946]
[1770234597072,9.5629,94.303,94.262,2.65584946]
[1770234597272,9.5629,94.303,94.263,2.65584946]
[1770234597474,9.5629,94.303,94.264,2.65584946]
[1770234597663,9.5629,94.303,94.265,2.65584946]
[1770234597869,9.5629,94.303,94.266,2.65584946]
[1770234598069,9.5629,94.303,94.267,2.65584946]
[1770234598265,29.32960959,94.294,94.198,1.83865292]
[1770234598466,29.32960959,94.294,94.15,286.70561836]
[1770234598663,29.32960959,94.294,94.18,1.84656038]
[1770234598865,29.32960959,94.268,94.187,9.5745]
[1770234599576,9.5677,94.256,94.198,9.5734]
[1770234600370,148.7288,94.321,94.18,1.84656038]
[1770234600371,29.40040282,94.29,94.18,1.84656038]
[1770234600772,9.5653,94.279,94.18,1.84656038]
[1770234601077,29.40040282,94.29,94.18,1.84656038]
[1770234601265,9.5689,94.244,94.18,1.84656038]
[1770234601465,29.40040282,94.264,94.18,1.84656038]
[1770234602173,29.40040282,94.264,94.12,19.1628]
[1770234602669,29.52304491,94.231,94.15,239.18943116]
[1770234602873,29.52304491,94.231,94.094,19.168]
[1770234603269,9.5735,94.198,94.131,9.5802]
[1770234603470,9.5735,94.198,94.08,20.1757649]
[1770234603471,29.51891016,94.208,94.08,20.1757649]
[1770234603772,29.51891016,94.159,94.09,1.84821777]
[1770234603974,29.51891016,94.159,94.09,1.777e-05]
[1770234604269,9.5793,94.142,94.02,20.1757649]
[1770234604465,9.5793,94.142,94.064,9.587]
[1770234604666,9.5793,94.142,94.02,20.1757649]
[1770234604863,9.58,94.134,94.051,9.5885]
[1770234605071,9.58,94.134,94.014,149.2131]
[1770234605072,29.51891016,94.134,94.014,149.2131]
[1770234605276,29.51891016,94.19,94.01,20.1757649]
[1770234605475,9.58,94.135,94.051,9.5884]
[1770234605676,29.58496058,94.148,94.01,20.1757649]
[1770234606170,29.58496058,94.116,94.01,20.1757649]
[1770234606364,29.58496058,94.116,94.02,7.93591014]
[1770234606566,9.5821,94.114,94.02,7.93591014]
[1770234607174,9.5821,94.114,94.029,9.5906]
[1770234607373,29.58496058,94.116,93.98,181.0565]
[1770234607374,29.58496058,94.116,94.03,7.93591014]
[1770234607773,29.58934248,94.14,94.009,149.22]
[1770234607969,29.58934248,94.14,94.05,7.93591014]
[1770234608885,29.58934248,94.14,94.05,9.5885]
[1770234608886,39.16874248,94.14,94.05,9.5885]
[1770234609176,29.58934248,94.139,94.05,9.5885]
[1770234609381,29.58934248,94.139,94.074,9.5861]
[1770234609872,29.61190134,94.164,94.05,7.93591014]
[1770234610073,29.61190134,94.164,94.086,9.5849]
[1770234610273,29.61190134,94.164,94.05,7.93591014]
[1770234610474,29.61190134,94.149,94.069,9.5866]
[1770234610675,29.61190134,94.149,94.05,7.93591014]
[1770234610867,29.61190134,94.149,94.051,2.66088138]
[1770234611065,29.61190134,94.129,94.056,9.5879]
[1770234611267,29.61190134,94.129,94.042,1.848802]
[1770234611472,29.61190134,94.129,94.043,2.661118]
[1770234611674,29.61190134,94.129,94.055,9.588]
[1770234611977,29.61190134,94.129,94.044,2.661118]
[1770234611978,29.61190134,94.129,94.042,1.848802]
[1770234612368,29.62854556,94.125,94.042,1.848802]
[1770234613674,29.62346256,94.123,94.046,9.589]
[1770234613875,29.62346256,94.123,94.042,1.848802]
[1770234614083,29.62346256,94.123,93.99,7.93591014]
[1770234614283,29.62346256,94.095,94.015,1.8498683]
[1770234614783,29.62346256,94.095,93.985,1.85039454]
[1770234615185,9.5869,94.067,93.994,9.5942]
[1770234615379,29.72048923,94.066,93.994,9.5942]
[1770234615582,29.72048923,94.066,93.941,19.1993]
[1770234615773,9.5885,94.051,93.981,9.5955]
[1770234615977,29.72048923,94.05,93.95,7.93591014]
[1770234616175,29.72048923,94.05,93.955,1.85095553]
[1770234616389,29.72048923,94.05,93.93,7.93591014]
[1770234616677,29.72048923,94.018,93.945,1.85134941]
[1770234616879,29.72048923,94.059,93.95,7.93591014]
[1770234617487,29.72048923,94.059,93.97,7.93591014]
[1770234617880,29.7383212,94.041,93.97,7.93591014]
[1770234618281,149.0753,94.101,93.945,1.85134941]
[1770234618282,29.7383212,94.036,93.956,9.5981]
[1770234618476,29.7383212,94.036,93.94,7.93591014]
[1770234618788,29.7383212,93.995,93.924,9.6014]
[1770234618982,29.7383212,93.995,93.91,7.93591014]
[1770234619584,9.5943,93.994,93.923,9.6014]
[1770234619780,29.7383212,93.995,93.93,7.93591014]
[1770234620182,149.0886,94.093,93.895,1.85174346]
[1770234620183,29.79213973,94.017,93.954,9.5983]
[1770234620479,29.79213973,94.017,93.95,7.93591014]
[1770234620480,29.79213973,94.04,93.97,7.93591014]
[1770234620980,29.79213973,94.039,93.99,7.93591014]
[1770234621483,9.5871,94.065,93.99,7.93591014]
[1770234621884,149.0844,94.096,93.99,7.93591014]
[1770234622086,9.5895,94.041,93.99,7.93591014]
[1770234622389,7.93591014,94.07,93.95,7.93591014]
[1770234622686,9.5913,94.023,93.953,9.5984]
[1770234622985,7.93591014,94.07,93.95,7.93591014]
[1770234623284,9.5913,94.024,93.951,9.5986]
[1770234623479,15.02265332,94.023,93.951,9.5986]
[1770234623684,15.02265332,94.023,93.961,9.5976]
[1770234623883,15.02265332,94.023,93.95,7.93591014]
[1770234624280,7.93591014,94.07,93.93,7.93591014]
[1770234624281,15.02268701,94.017,93.93,7.93591014]
[1770234624883,15.02268701,94.017,93.955,9.5982]
[1770234625580,15.01917531,94.036,93.966,9.5971]
[1770234626281,15.01917531,94.034,93.95,7.93591014]
[1770234626690,15.01917531,94.019,93.938,9.5999]
[1770234627082,15.01917531,94.019,93.93,7.93591014]
[1770234627293,15.01917531,94.019,93.95,7.93591014]
[1770234627590,15.01922619,94.042,93.95,7.93591014]
[1770234627990,15.01922619,94.039,93.974,9.5963]
[1770234628195,15.01922619,94.039,93.95,7.93591014]
[1770234628389,15.01922619,94.039,93.97,7.93591014]
[1770234628591,9.5877,94.059,93.99,7.93591014]
[1770234628788,15.01922619,94.058,93.99,7.93591014]
[1770234629289,15.01922619,94.058,93.99,17.52961014]
[1770234629484,15.01922619,94.058,93.99,7.93591014]
[1770234629688,15.01922619,94.058,94.0,9.5926]
[1770234629989,15.01922619,94.058,93.98,7.93591014]
[1770234630988,15.01922619,94.058,93.96,7.93591014]
[1770234631395,15.01922619,94.058,93.98,7.93591014]
[1770234631695,9.589,94.036,93.98,7.93591014]
[1770234631996,15.01922619,94.058,93.96,7.93591014]
[1770234632496,19.1669,94.091,93.96,7.93591014]
[1770234632497,15.07173372,94.034,93.96,7.93591014]
[1770234632892,24.66113372,94.033,93.974,9.5953]
[1770234633092,15.07173372,94.032,93.974,9.5953]
[1770234633396,15.07173372,94.032,93.96,7.93591014]
[1770234633593,15.07173372,94.032,93.976,9.5951]
[1770234633793,15.0759905,94.054,93.98,7.93591014]
[1770234633997,15.0759905,94.054,93.96,7.93591014]
[1770234634186,9.5875,94.052,93.983,9.5943]
[1770234634389,15.0759905,94.051,93.96,7.93591014]
[1770234635896,9.5888,94.039,93.981,9.5946]
[1770234636297,15.0759905,94.051,93.981,9.5946]
[1770234636798,9.5888,94.039,93.981,9.5946]
[1770234636997,15.06734456,94.038,93.937,19.1981]
[1770234637187,15.06734456,94.038,93.971,9.5956]
[1770234637389,15.06563751,94.024,93.95,7.93591014]
[1770234637899,15.06563751,94.119,94.01,7.93591014]
[1770234638197,15.06563751,94.119,94.011,2.66219506]
[1770234638400,15.06563751,94.075,94.012,2.66219506]
[1770234638691,15.06563751,94.075,93.97,7.93591014]
[1770234638896,9.5887,94.039,93.974,9.5953]
[1770234639199,15.06563751,94.047,93.975,2.66325212]
[1770234639494,15.06563751,94.047,93.976,2.66325212]
[1770234639692,15.06563751,94.047,93.977,2.66325212]
[1770234639994,9.5893,94.034,93.978,2.66325212]
[1770234640193,9.5893,94.034,93.979,2.66325212]
[1770234640497,9.5893,94.034,93.95,7.93591014]
[1770234640498,9.5893,94.034,93.98,2.66325212]
[1770234640695,15.02854253,94.033,93.981,2.66325212]
[1770234640897,19.1673,94.089,93.95,7.93591014]
[1770234640898,15.02854253,94.055,93.982,2.66325212]
[1770234641194,15.02854253,94.023,93.95,7.93591014]
[1770234641400,15.02854253,94.023,93.951,2.66373162]
[1770234641601,15.02854253,94.023,93.952,2.66373162]
[1770234641800,14.89326575,94.02,93.953,2.66373162]
[1770234642102,14.89326575,94.02,93.954,2.66373162]
[1770234642299,14.89326575,94.02,93.955,2.66373162]
[1770234642497,14.89326575,94.007,93.956,2.66373162]
[1770234642700,14.89326575,94.007,93.957,2.66373162]
[1770234642893,14.89326575,94.007,93.958,2.66373162]
[1770234643098,14.89326575,94.007,93.959,2.66373162]
[1770234643301,14.89326575,94.007,93.96,2.66373162]
[1770234643492,14.89326575,94.007,93.91,7.93591014]
[1770234644295,9.5941,93.987,93.923,9.6005]
[1770234644492,14.89326575,94.007,93.91,7.93591014]
[1770234644999,9.5949,93.979,93.91,7.93591014]
[1770234645999,14.88080739,93.978,93.89,7.93591014]
[1770234646206,14.88080739,93.978,93.87,7.93591014]
[1770234646401,14.88080739,93.978,93.906,9.6023]
[1770234646903,14.88080739,93.96,93.896,9.6032]
[1770234647499,14.88080739,93.96,93.886,1.85255178]
[1770234647500,14.88080739,93.96,93.907,9.6022]
[1770234648097,14.88080739,93.96,93.897,9.6032]
[1770234648703,9.598,93.949,93.886,9.6043]
[1770234649006,14.88080739,93.96,93.876,1.85260603]
[1770234649202,14.88080739,93.96,93.895,9.6033]
[1770234649406,14.88080739,93.96,93.89,7.93591014]
[1770234650304,14.88080739,93.96,93.903,9.6026]
[1770234651110,14.88080739,93.96,93.893,9.6035]
[1770234651311,14.88080739,93.96,93.876,1.85260603]
[1770234651903,14.93080811,93.957,93.883,9.6046]
[1770234652103,14.93080811,93.957,93.85,7.93591014]
[1770234652405,14.93080811,93.957,93.866,1.8527885]
[1770234652709,14.93080811,93.931,93.85,7.93591014]
[1770234652899,14.93080811,93.931,93.856,1.85304994]
[1770234653803,15.01054547,93.928,93.861,9.6068]
[1770234654003,15.01054547,93.928,93.856,1.85304994]
[1770234654405,15.01054547,93.928,93.871,9.6058]
[1770234654803,15.01054547,93.928,93.856,1.85304994]
[1770234655003,7.93591014,93.99,93.856,1.85304994]
[1770234655004,9.598,93.948,93.856,1.85304994]
[1770234655206,15.01054895,93.947,93.856,1.85304994]
[1770234655609,15.05516726,93.934,93.876,9.6053]
[1770234655809,15.05516726,93.934,93.877,2.66615286]
[1770234656012,15.05516726,93.934,93.878,2.66615286]
[1770234656209,15.05516726,93.934,93.879,2.66615286]
[1770234656407,15.05516726,93.934,93.88,2.66615286]
[1770234656608,15.05516726,93.934,93.856,1.85304994]
[1770234656609,15.05516726,93.934,93.881,2.66615286]
[1770234656805,15.05516726,93.934,93.882,2.66615286]
[1770234657010,15.05516726,93.934,93.883,2.66615286]
[1770234657211,19.1833,94.011,93.892,9.6036]
[1770234657212,9.5975,93.954,93.892,9.6036]
[1770234657410,15.06866247,93.953,93.893,2.66615286]
[1770234657609,15.06866247,93.953,93.894,2.66615286]
[1770234657915,9.5988,93.94,93.895,2.66615286]
[1770234658118,9.5988,93.94,93.896,2.66615286]
[1770234658311,13.73558604,93.936,93.871,9.6058]
[1770234659216,13.73556111,93.93,93.862,9.6068]
[1770234659416,13.73556111,93.93,93.83,7.93591014]
[1770234659806,13.73811397,93.895,93.836,1.85332133]
[1770234660017,13.73811397,93.895,93.81,7.93591014]
[1770234660418,13.73811397,93.888,93.826,9.6104]
[1770234660617,13.73811397,93.888,93.816,1.8539483]
[1770234660812,13.73811397,93.912,93.84,7.97231516]
[1770234661013,9.73416527,93.995,93.816,1.8539483]
[1770234661014,13.73811397,93.909,93.82,7.97231516]
[1770234661312,13.73811397,93.909,93.816,1.8539483]
[1770234661515,9.6031,93.899,93.84,9.609]